bitfinex/quotes_SOLUSD_20250728
["timestamp","ask_amount","ask_price","bid_price","bid_amount"]
[1753696335512,36.56,193.37,193.36,5.84049293]
[1753696335717,36.56,193.37,193.36,6.83481607]
[1753696335919,39.25782372,193.4,193.36,6.55049293]
[1753696336100,39.25782372,193.4,193.37,11.01176498]
[1753696336307,39.25782372,193.4,193.39,26.0]
[1753696338611,39.97782372,193.4,193.39,26.0]
[1753696338826,39.25782372,193.4,193.39,26.0]
[1753696339352,2.69782372,193.4,193.39,36.24484693]
[1753696339935,2.69782372,193.4,193.39,41.41574511]
[1753696340927,36.54,193.44,193.4,0.28432314]
[1753696341130,2.69747499,193.43,193.4,10.24484693]
[1753696341336,2.69747499,193.43,193.41,15.13088726]
[1753696341520,2.69747499,193.43,193.41,14.42088726]
[1753696342505,2.69747499,193.43,193.41,5.17036347]
[1753696342710,2.69747499,193.43,193.41,14.42088726]
[1753696343218,2.69747499,193.43,193.41,15.13088726]
[1753696344328,2.69747499,193.43,193.42,10.24484693]
[1753696344906,36.52,193.47,193.45,0.28432314]
[1753696345242,2.69689023,193.48,193.45,0.99432314]
[1753696345413,0.72,193.47,193.45,0.28432314]
[1753696345614,0.72,193.46,193.42,9.25052379]
[1753696345833,0.72,193.45,193.42,14.42061995]
[1753696346021,0.72,193.45,193.44,26.0]
[1753696346613,0.72,193.45,193.42,0.28432314]
[1753696347344,36.52,193.47,193.44,0.28432314]
[1753696347643,36.52,193.47,193.44,26.28432314]
[1753696348038,36.52,193.47,193.44,0.99432314]
[1753696348421,36.52,193.47,193.44,0.28432314]
[1753696348738,2.69689023,193.48,193.46,35.25052379]
[1753696349245,9.97052379,193.47,193.46,26.0]
[1753696349415,9.97052379,193.47,193.39,37.23]
[1753696349416,5.16902718,193.46,193.37,9.25052379]
[1753696349614,9.25052379,193.42,193.37,14.42195679]
[1753696349828,9.97052379,193.42,193.37,15.13195679]
[1753696350110,0.72,193.42,193.37,15.13195679]
[1753696350317,36.56,193.43,193.38,9.96052379]
[1753696350535,45.81052379,193.43,193.39,0.71]
[1753696350736,0.72,193.42,193.38,9.25052379]
[1753696350937,37.28,193.43,193.39,9.25052379]
[1753696351240,37.28,193.43,193.41,9.25052379]
[1753696351241,36.56,193.43,193.41,9.25052379]
[1753696351545,36.56,193.43,193.41,5.45463094]
[1753696352037,9.25052379,193.47,193.43,0.28432314]
[1753696352246,36.54,193.46,193.43,0.28432314]
[1753696352741,2.69689023,193.48,193.45,0.28432314]
[1753696352922,36.54,193.47,193.46,26.28432314]
[1753696353117,37.26,193.47,193.46,26.0]
[1753696353436,36.54,193.47,193.46,26.0]
[1753696353830,37.26,193.47,193.46,26.0]
[1753696354040,51.67933972,193.47,193.39,0.71]
[1753696354339,9.25052379,193.43,193.41,26.14216157]
[1753696354539,0.72,193.43,193.41,26.14216157]
[1753696354726,45.81052379,193.44,193.41,26.14216157]
[1753696354926,46.53052379,193.44,193.41,26.14216157]
[1753696355526,46.53052379,193.44,193.41,31.31249276]
[1753696355722,36.56,193.44,193.41,32.02249276]
[1753696356130,36.56,193.44,193.42,0.14216157]
[1753696356941,9.25052379,193.43,193.41,26.14216157]
[1753696357149,9.97052379,193.43,193.41,26.14216157]
[1753696357448,45.81052379,193.44,193.41,31.31248592]
[1753696357742,36.56,193.44,193.41,31.31248592]
[1753696358045,45.81052379,193.44,193.41,31.31248592]
[1753696358346,46.53052379,193.44,193.41,31.31248592]
[1753696358845,9.97052379,193.43,193.41,26.28432314]
[1753696359144,9.25052379,193.43,193.36,6.6261]
[1753696359443,9.25052379,193.43,193.4,26.0]
[1753696359626,36.56,193.44,193.4,26.0]
[1753696359832,9.25052379,193.43,193.4,26.0]
[1753696360143,37.28,193.44,193.4,26.0]
[1753696360352,9.25052379,193.43,193.4,26.0]
[1753696360641,46.53052379,193.44,193.4,26.0]
[1753696361038,9.25052379,193.43,193.4,26.0]
[1753696361244,9.25052379,193.43,193.4,31.17047578]
[1753696361424,45.83052379,193.44,193.41,0.71]
[1753696361620,46.55052379,193.44,193.4,31.17047578]
[1753696362022,9.25052379,193.43,193.4,31.17047578]
[1753696362431,37.3,193.44,193.4,31.17047578]
[1753696362432,46.55052379,193.44,193.4,31.17047578]
[1753696362932,9.25052379,193.43,193.4,31.17047578]
[1753696363247,46.55052379,193.44,193.41,0.28432314]
[1753696363548,36.58,193.44,193.41,0.28432314]
[1753696363728,36.58,193.44,193.42,0.71]
[1753696364633,37.3,193.44,193.41,5.45449586]
[1753696364832,9.25052379,193.42,193.39,26.0]
[1753696365031,9.25052379,193.42,193.37,0.28432314]
[1753696365032,9.25052379,193.4,193.37,0.14216157]
[1753696365226,9.97052379,193.4,193.37,0.14216157]
[1753696365444,9.97052379,193.4,193.38,26.0]
[1753696366138,9.97052379,193.4,193.39,26.0]
[1753696366855,6.50327678,193.4,193.38,5.17105658]
[1753696367829,39.27803386,193.41,193.34,107.01356551]
[1753696367830,6.50327678,193.39,193.34,5.17223544]
[1753696368033,37.28,193.38,193.34,31.17223544]
[1753696368255,36.56,193.38,193.35,0.79216157]
[1753696368577,2.69803386,193.41,193.37,0.28432314]
[1753696368734,2.69803386,193.41,193.4,0.28432314]
[1753696369058,2.69803386,193.41,193.38,0.28432314]
[1753696369443,3.36803386,193.41,193.38,0.28432314]
[1753696369759,2.69803386,193.41,193.38,0.28432314]
[1753696370128,37.25,193.43,193.39,5.82089818]
[1753696370129,42.36327678,193.43,193.39,5.82089818]
[1753696370325,36.58,193.43,193.4,0.65]
[1753696370528,2.69771091,193.42,193.39,5.17089818]
[1753696370765,2.69771091,193.42,193.39,5.82089818]
[1753696371140,2.69771091,193.42,193.41,26.0]
[1753696371360,36.58,193.46,193.41,6.71759992]
[1753696371562,2.69698714,193.47,193.43,0.28432314]
[1753696371760,2.69698714,193.47,193.44,0.65]
[1753696372390,2.69698714,193.47,193.45,5.16929439]
[1753696373052,3.36698714,193.47,193.45,5.16929439]
[1753696373469,2.69698714,193.47,193.45,5.16929439]
[1753696374272,0.67,193.46,193.44,5.16953237]
[1753696374477,6.45327678,193.46,193.44,5.16953237]
[1753696374676,0.67,193.46,193.44,5.16953237]
[1753696374877,2.69698714,193.47,193.44,5.16953237]
[1753696375082,3.36698714,193.47,193.44,5.16953237]
[1753696375363,2.69698714,193.47,193.44,5.16953237]
[1753696375563,2.69698714,193.47,193.45,0.28432314]
[1753696375960,2.69698714,193.47,193.45,0.93432314]
[1753696376160,2.69698714,193.47,193.46,26.0]
[1753696376455,2.69698714,193.47,193.46,31.45335032]
[1753696376877,2.69698714,193.47,193.46,32.10335032]
[1753696377791,2.69698714,193.47,193.46,31.45335032]
[1753696380086,36.58,193.49,193.46,37.8866271]
[1753696380260,39.27641622,193.49,193.46,37.8866271]
[1753696380461,39.94641622,193.49,193.46,31.45335032]
[1753696381081,39.27641622,193.49,193.46,31.45335032]
[1753696381676,39.27641622,193.49,193.46,32.10335032]
[1753696382185,2.69641622,193.49,193.47,0.28432314]
[1753696382369,36.54,193.51,193.48,0.28432314]
[1753696382576,2.69635157,193.5,193.48,0.28432314]
[1753696383165,2.69635157,193.5,193.48,0.14216157]
[1753696383365,2.69635157,193.5,193.49,5.92543835]
[1753696383574,2.69635157,193.5,193.49,26.14216157]
[1753696383776,2.69635157,193.5,193.49,31.31038731]
[1753696383991,2.69635157,193.5,193.49,31.16822574]
[1753696384371,2.69635157,193.5,193.48,31.16841771]
[1753696385699,2.69635157,193.5,193.48,31.81841771]
[1753696385901,2.69635157,193.5,193.48,31.16841771]
[1753696386269,36.54,193.51,193.5,26.0]
[1753696386469,2.69617648,193.53,193.5,32.43327678]
[1753696386690,2.69617648,193.53,193.52,6.06759992]
[1753696386691,1e-08,193.53,193.52,6.06759992]
[1753696386969,0.67,193.61,193.56,0.28432314]
[1753696387171,36.58,193.6,193.57,5.78327678]
[1753696387371,36.58,193.6,193.54,0.28432314]
[1753696387603,0.67,193.59,193.54,0.28432314]
[1753696387771,5.78327678,193.56,193.52,26.0]
[1753696387973,37.33,193.55,193.53,5.16715754]
[1753696388891,36.66,193.55,193.53,5.16715754]
[1753696389083,36.66,193.55,193.53,11.60043432]
[1753696389277,36.66,193.55,193.54,6.43327678]
[1753696389692,36.66,193.55,193.54,5.78327678]
[1753696390208,37.33,193.55,193.53,10.95040653]
[1753696390405,36.66,193.55,193.53,5.16712975]
[1753696390614,37.33,193.55,193.53,5.16712975]
[1753696391098,0.67,193.54,193.52,31.16740813]
[1753696391269,36.66,193.55,193.52,36.95068491]
[1753696391980,36.66,193.55,193.52,37.60068491]
[1753696392481,36.66,193.55,193.54,5.78327678]
[1753696392688,36.66,193.55,193.54,6.43327678]
[1753696392891,36.66,193.55,193.54,5.78327678]
[1753696393480,36.66,193.55,193.54,6.43327678]
[1753696393790,36.66,193.55,193.54,11.23449048]
[1753696395201,36.66,193.55,193.53,5.78327678]
[1753696395381,36.66,193.55,193.52,31.1672268]
[1753696395578,0.67,193.54,193.52,31.78327678]
[1753696395789,36.66,193.55,193.52,26.0]
[1753696396298,5.78327678,193.53,193.47,95.72667678]
[1753696396601,36.64,193.52,193.48,10.95163379]
[1753696396776,37.31,193.52,193.48,10.95163379]
[1753696396983,37.31,193.52,193.48,5.16835701]
[1753696397304,37.31,193.52,193.48,10.95163379]
[1753696397489,37.31,193.52,193.48,11.60163379]
[1753696398801,0.67,193.51,193.48,0.28432314]
[1753696398992,0.67,193.5,193.48,88.3]
[1753696399303,36.62,193.49,193.48,88.3]
[1753696399806,36.62,193.49,193.48,93.46849286]
[1753696400007,0.67,193.55,193.49,0.14216157]
[1753696400220,26.62,193.54,193.5,5.78327678]
[1753696400388,26.62,193.54,193.51,5.78327678]
[1753696400581,26.62,193.54,193.51,6.43327678]
[1753696400798,26.62,193.54,193.52,5.78327678]
[1753696401711,26.62,193.54,193.51,26.0]
[1753696402022,0.67,193.53,193.51,31.16743731]
[1753696402207,26.62,193.54,193.51,31.16743731]
[1753696402712,27.29,193.54,193.51,31.16743731]
[1753696403118,26.62,193.54,193.49,5.16816707]
[1753696403295,0.67,193.53,193.49,5.16816707]
[1753696403609,0.67,193.53,193.49,10.95144385]
[1753696404212,0.67,193.53,193.49,11.60144385]
[1753696404412,26.62,193.54,193.49,11.60144385]
[1753696404787,0.67,193.53,193.5,5.78327678]
[1753696405007,26.62,193.54,193.5,5.78327678]
[1753696405193,27.29,193.54,193.5,5.78327678]
[1753696405398,27.29,193.54,193.5,6.43327678]
[1753696406003,27.29,193.54,193.51,5.16769159]
[1753696407310,0.67,193.58,193.53,5.78327678]
[1753696407494,37.31,193.57,193.55,5.78327678]
[1753696407691,37.31,193.57,193.54,5.78327678]
[1753696408086,37.31,193.57,193.54,10.94993939]
[1753696408581,0.67,193.56,193.54,5.16666261]
[1753696408818,0.67,193.55,193.53,93.46708324]
[1753696409002,0.67,193.54,193.53,88.3]
[1753696409191,0.67,193.54,193.52,10.9506414]
[1753696409395,36.66,193.53,193.52,10.9506414]
[1753696410500,36.66,193.53,193.51,99.25090465]
[1753696411115,36.66,193.53,193.51,93.46762787]
[1753696411423,36.66,193.53,193.51,99.25090465]
[1753696413221,36.66,193.53,193.51,5.16762787]
[1753696413521,36.66,193.53,193.51,11.60090465]
[1753696416925,36.66,193.53,193.51,5.81762787]
[1753696417113,36.66,193.53,193.51,11.60090465]
[1753696419523,36.66,193.53,193.51,5.81762787]
[1753696419724,36.66,193.53,193.51,11.60090465]
[1753696420626,36.66,193.53,193.51,10.95090465]
[1753696421825,6.45327678,193.57,193.52,0.65]
[1753696422113,37.23,193.56,193.52,0.65]
[1753696422324,0.67,193.55,193.51,10.95090465]
[1753696422632,5.78327678,193.52,193.41,12.36625064]
[1753696422948,5.78327678,193.46,193.42,0.65]
[1753696423104,36.6,193.45,193.42,0.65]
[1753696423626,5.78327678,193.44,193.42,5.82009616]
[1753696424128,6.45327678,193.5,193.43,0.65]
[1753696424327,5.78327678,193.48,193.45,26.0]
[1753696424499,5.78327678,193.48,193.45,26.65]
[1753696424701,5.78327678,193.46,193.45,26.28432314]
[1753696424904,5.78327678,193.46,193.45,26.0]
[1753696425132,6.45327678,193.46,193.42,5.17009616]
[1753696425316,5.78327678,193.43,193.41,93.47033215]
[1753696425517,36.62,193.42,193.41,5.45465529]
[1753696425725,36.62,193.42,193.41,5.17033215]
[1753696426100,36.62,193.42,193.41,5.45465529]
[1753696426302,36.62,193.42,193.41,5.96249372]
[1753696426515,0.67,193.45,193.42,0.28432314]
[1753696426516,5.78327678,193.45,193.42,0.28432314]
[1753696426712,36.6,193.44,193.42,0.28432314]
[1753696426934,36.6,193.44,193.42,0.93432314]
[1753696427508,42.38327678,193.44,193.43,5.16982887]
[1753696427729,43.05327678,193.44,193.43,5.16982887]
[1753696428027,43.05327678,193.44,193.42,0.28432314]
[1753696428245,37.27,193.44,193.42,5.17009135]
[1753696428443,6.45327678,193.43,193.42,5.17009135]
[1753696428744,43.05327678,193.43,193.42,5.17009135]
[1753696428933,43.05327678,193.43,193.41,31.17030104]
[1753696429516,36.6,193.43,193.41,31.17030104]
[1753696430933,36.6,193.43,193.41,119.47030104]
[1753696432336,36.6,193.43,193.42,0.71]
[1753696432649,36.6,193.43,193.41,119.47030104]
[1753696433144,6.45327678,193.42,193.4,93.47038753]
[1753696433512,36.6,193.43,193.4,93.47038753]
[1753696433718,36.6,193.43,193.4,94.18038753]
[1753696434020,36.6,193.43,193.4,93.47038753]
[1753696434344,43.05327678,193.43,193.4,93.47038753]
[1753696435635,0.67,193.42,193.4,93.47038753]
[1753696435839,42.38327678,193.43,193.4,93.47038753]
[1753696436337,42.38327678,193.43,193.4,94.18038753]
[1753696436540,0.67,193.44,193.4,94.18038753]
[1753696436738,0.67,193.47,193.43,5.78327678]
[1753696436937,36.56,193.46,193.41,95.07759992]
[1753696437254,37.23,193.46,193.41,95.07759992]
[1753696437848,6.45327678,193.45,193.41,88.58432314]
[1753696438044,6.45327678,193.45,193.41,88.3]
[1753696438216,5.78327678,193.45,193.41,88.3]
[1753696438543,0.67,193.44,193.42,5.17009616]
[1753696438840,36.56,193.43,193.42,5.17009616]
[1753696439035,37.23,193.43,193.42,5.17009616]
[1753696439446,36.56,193.43,193.42,5.17009616]
[1753696439646,43.01327678,193.43,193.4,93.47044615]
[1753696439822,6.45327678,193.42,193.4,93.47044615]
[1753696440259,0.67,193.42,193.4,93.47044615]
[1753696441336,42.34327678,193.43,193.4,93.47044615]
[1753696441337,36.56,193.43,193.4,93.47044615]
[1753696441845,37.23,193.43,193.4,93.47044615]
[1753696442735,37.23,193.43,193.39,5.17089818]
[1753696442918,0.67,193.43,193.39,5.88089818]
[1753696443120,37.21,193.42,193.39,5.17089818]
[1753696443328,5.78327678,193.42,193.41,26.0]
[1753696443533,42.32327678,193.42,193.41,26.0]
[1753696443942,42.99327678,193.42,193.39,26.0]
[1753696444135,5.78327678,193.4,193.39,26.0]
[1753696444446,6.45327678,193.4,193.39,26.0]
[1753696446155,6.45327678,193.4,193.36,5.17170045]
[1753696446360,42.99327678,193.39,193.38,26.0]
[1753696446949,37.21,193.39,193.38,26.0]
[1753696447154,42.99327678,193.39,193.38,26.0]
[1753696447346,42.99327678,193.39,193.36,5.17170045]
[1753696447560,6.45327678,193.38,193.36,26.0]
[1753696447843,0.67,193.37,193.36,26.0]
[1753696448149,5.78327678,193.38,193.37,26.0]
[1753696448657,6.45327678,193.38,193.34,5.17223544]
[1753696448830,6.45327678,193.37,193.34,5.17223544]
[1753696449023,36.52,193.36,193.34,5.17223544]
[1753696449652,42.97327678,193.36,193.33,31.17242924]
[1753696449823,42.97327678,193.36,193.35,26.0]
[1753696450344,42.97327678,193.36,193.33,5.17242924]
[1753696450554,6.45327678,193.35,193.33,5.17242924]
[1753696450741,0.67,193.35,193.33,5.17242924]
[1753696450942,6.45327678,193.35,193.33,5.17242924]
[1753696451637,0.67,193.35,193.33,5.17242924]
[1753696453653,0.67,193.35,193.34,26.0]
[1753696454540,42.30327678,193.36,193.33,26.0]
[1753696454740,42.97327678,193.36,193.33,26.0]
[1753696455669,0.67,193.35,193.33,26.0]
[1753696455962,0.67,193.34,193.33,26.0]
[1753696456546,36.5,193.35,193.33,26.71]
[1753696457250,2.6983738,193.4,193.34,0.71]
[1753696457451,5.78327678,193.38,193.34,0.71]
[1753696457761,5.78327678,193.38,193.35,0.71]
[1753696458279,2.6983738,193.4,193.37,5.78327678]
[1753696458442,36.48,193.39,193.38,6.44327678]
[1753696458639,36.48,193.39,193.38,0.66]
[1753696459164,36.48,193.39,193.37,0.28432314]
[1753696459473,36.48,193.39,193.37,5.45557343]
[1753696460340,36.48,193.39,193.37,11.89885021]
[1753696460957,36.5,193.38,193.37,11.89885021]
[1753696461741,3.41795841,193.43,193.37,11.89885021]
[1753696461942,36.48,193.42,193.4,5.78327678]
[1753696462138,36.48,193.42,193.4,6.44327678]
[1753696462456,36.48,193.42,193.39,5.78327678]
[1753696462839,36.48,193.42,193.39,6.44327678]
[1753696463870,37.2,193.42,193.4,5.17063081]
[1753696464364,36.48,193.42,193.4,5.83063081]
[1753696464745,36.48,193.42,193.4,5.17063081]
[1753696466043,36.48,193.42,193.4,10.95390759]
[1753696466658,36.48,193.41,193.4,5.17063081]
[1753696466865,2.69795841,193.43,193.4,5.17063081]
[1753696467048,3.41795841,193.43,193.4,5.17063081]
[1753696467249,36.48,193.42,193.4,5.17063081]
[1753696467651,3.41795841,193.43,193.4,5.17063081]
[1753696467860,36.46,193.41,193.4,5.17063081]
[1753696468266,0.72,193.47,193.42,26.0]
[1753696468448,37.18,193.46,193.42,31.78327678]
[1753696468856,0.72,193.45,193.42,26.0]
[1753696470063,0.72,193.45,193.43,5.16982887]
[1753696470585,0.72,193.44,193.42,26.0]
[1753696470752,36.46,193.43,193.42,26.0]
[1753696471077,36.46,193.43,193.42,31.17009616]
[1753696471276,2.69740743,193.47,193.43,0.28432314]
[1753696471483,36.46,193.46,193.45,6.06759992]
[1753696471655,36.46,193.46,193.45,6.72759992]
[1753696471981,2.69699197,193.5,193.45,6.72759992]
[1753696472174,2.69699197,193.5,193.46,5.82902718]
[1753696472175,36.46,193.49,193.46,5.82902718]
[1753696475103,2.69699197,193.5,193.48,5.78327678]
[1753696475272,36.46,193.49,193.48,6.44327678]
[1753696475464,36.46,193.49,193.47,5.78327678]
[1753696475666,2.69699197,193.5,193.47,5.78327678]
[1753696475963,36.46,193.49,193.47,5.78327678]
[1753696476185,0.72,193.48,193.46,5.16902718]
[1753696477065,36.46,193.49,193.46,5.16902718]
[1753696477268,36.46,193.49,193.47,0.66]
[1753696477982,36.46,193.49,193.46,10.95230396]
[1753696478186,36.46,193.49,193.46,5.16902718]
[1753696478382,0.72,193.48,193.46,5.16902718]
[1753696479494,0.72,193.47,193.46,5.16902718]
[1753696479678,0.72,193.47,193.45,26.0]
[1753696479875,36.46,193.46,193.45,31.16929439]
[1753696480062,36.46,193.46,193.45,26.0]
[1753696480275,36.46,193.46,193.45,31.16929439]
[1753696480480,36.46,193.46,193.45,26.0]
[1753696481597,36.46,193.46,193.43,94.74327678]
[1753696481598,42.96327678,193.46,193.43,26.0]
[1753696481780,0.72,193.45,193.43,26.0]
[1753696481979,0.72,193.44,193.43,26.0]
[1753696482181,0.72,193.48,193.43,26.66]
[1753696482484,42.24327678,193.47,193.43,26.66]
[1753696482693,42.96327678,193.47,193.43,31.82982349]
[1753696483686,0.72,193.46,193.43,31.82982349]
[1753696483884,0.72,193.46,193.43,31.16982349]
[1753696484202,0.72,193.45,193.43,26.0]
[1753696484401,36.46,193.44,193.43,26.0]
[1753696484783,36.46,193.44,193.42,5.17008184]
[1753696484986,37.18,193.44,193.4,120.08327678]
[1753696485511,37.18,193.44,193.4,120.74327678]
[1753696485693,37.18,193.44,193.4,114.96]
[1753696485891,37.18,193.44,193.4,120.74327678]
[1753696486088,37.18,193.44,193.41,5.17027927]
[1753696486775,37.18,193.44,193.41,5.83027927]
[1753696486979,36.46,193.44,193.41,5.83027927]
[1753696488087,36.46,193.44,193.42,5.83002586]
[1753696488407,36.46,193.44,193.43,0.66]
[1753696489105,36.46,193.44,193.42,5.17002586]
[1753696489407,36.46,193.44,193.42,5.83002586]
[1753696489708,2.69717615,193.5,193.42,5.83002586]
[1753696489709,6.45327678,193.49,193.43,6.44327678]
[1753696489906,36.46,193.48,193.44,5.78327678]
[1753696490109,36.46,193.48,193.44,6.44327678]
[1753696490493,2.69717615,193.5,193.45,5.78327678]
[1753696490683,36.46,193.49,193.47,5.78327678]
[1753696490886,36.46,193.49,193.47,6.44327678]
[1753696491090,36.46,193.49,193.46,31.78327678]
[1753696491288,36.46,193.49,193.46,32.44327678]
[1753696491700,36.46,193.49,193.47,5.16876001]
[1753696492097,37.13,193.49,193.47,5.16876001]
[1753696492416,36.46,193.48,193.47,5.16876001]
[1753696493211,36.46,193.48,193.47,11.89635993]
[1753696494302,2.69649331,193.53,193.5,26.0]
[1753696494506,36.46,193.52,193.51,6.44327678]
[1753696495418,36.46,193.52,193.51,6.72759992]
[1753696495923,36.46,193.52,193.51,11.89529151]
[1753696497324,46.40327062,193.56,193.54,26.0]
[1753696497504,46.40327062,193.56,193.55,5.78327678]
[1753696497820,82.84327062,193.56,193.55,5.78327678]
[1753696498025,82.84327062,193.56,193.55,10.94990039]
[1753696499230,82.84327062,193.56,193.55,5.16662361]
[1753696499608,83.51327062,193.56,193.54,26.0]
[1753696499808,0.67,193.55,193.54,26.0]
[1753696501811,6.45327678,193.55,193.5,5.78327678]
[1753696502013,37.11,193.54,193.48,5.82849286]
[1753696502229,0.67,193.53,193.5,10.95113965]
[1753696502541,36.44,193.52,193.5,36.95113965]
[1753696502703,36.44,193.52,193.51,5.78327678]
[1753696502904,36.44,193.52,193.5,31.82786287]
[1753696502905,36.44,193.52,193.5,37.61113965]
[1753696503619,37.11,193.52,193.5,31.16786287]
[1753696503819,36.44,193.52,193.5,31.16786287]
[1753696504433,46.40327062,193.56,193.51,6.72759992]
[1753696504607,36.44,193.55,193.53,5.78327678]
[1753696504805,36.44,193.55,193.52,6.44327678]
[1753696505512,36.44,193.55,193.54,5.78327678]
[1753696505914,36.44,193.55,193.53,5.78327678]
[1753696506504,36.44,193.55,193.54,5.16689056]
[1753696507630,36.44,193.55,193.54,11.61016734]
[1753696507927,46.40327062,193.56,193.54,37.61016734]
[1753696508247,9.14327062,193.56,193.55,6.06759992]
[1753696508420,36.44,193.55,193.54,37.23449048]
[1753696508620,36.44,193.55,193.54,37.89449048]
[1753696511335,36.44,193.55,193.54,37.23449048]
[1753696511634,36.44,193.55,193.54,32.06759992]
[1753696511936,37.11,193.55,193.54,26.0]
[1753696512316,36.44,193.55,193.54,26.0]
[1753696513325,36.44,193.55,193.54,31.16689056]
[1753696513541,36.44,193.55,193.54,26.0]
[1753696513727,37.11,193.55,193.54,26.0]
[1753696514419,37.11,193.55,193.52,88.3]
[1753696514619,0.67,193.54,193.5,99.25117823]
[1753696514838,37.09,193.53,193.51,0.28432314]
[1753696515014,36.42,193.53,193.52,26.0]
[1753696515214,36.42,193.53,193.51,5.92543835]
[1753696515415,36.42,193.53,193.52,5.78327678]
[1753696515710,36.42,193.53,193.52,32.06759992]
[1753696515914,0.67,193.58,193.53,0.28432314]
[1753696516123,36.42,193.57,193.54,5.78327678]
[1753696516325,37.09,193.57,193.54,5.78327678]
[1753696516813,37.09,193.57,193.54,10.9500782]
[1753696517016,36.42,193.57,193.54,5.78327678]
[1753696517230,0.67,193.56,193.53,88.3]
[1753696517448,0.67,193.56,193.52,26.0]
[1753696517617,0.67,193.55,193.52,31.16739569]
[1753696517821,36.42,193.54,193.52,36.95067247]
[1753696518023,36.42,193.54,193.52,37.61067247]
[1753696518419,36.42,193.54,193.52,36.95067247]
[1753696519523,36.42,193.54,193.52,37.65067247]
[1753696520652,37.14,193.54,193.52,36.95067247]
[1753696520846,37.14,193.54,193.52,31.78327678]
[1753696521048,37.14,193.54,193.52,26.0]
[1753696521253,37.14,193.54,193.5,88.3]
[1753696521254,0.72,193.53,193.5,88.3]
[1753696521628,42.20327678,193.54,193.5,88.3]
[1753696521629,0.72,193.52,193.5,88.3]
[1753696521836,37.14,193.51,193.5,88.3]
[1753696522442,36.42,193.51,193.5,93.46795865]
[1753696522645,36.42,193.51,193.5,11.23555857]
[1753696523262,36.42,193.51,193.5,5.45228179]
[1753696523564,36.42,193.51,193.5,0.28432314]
[1753696524568,37.14,193.51,193.49,88.3]
[1753696524858,0.72,193.5,193.49,88.3]
[1753696525061,0.72,193.5,193.48,26.0]
[1753696525267,0.72,193.49,193.48,26.0]
[1753696526064,6.50327678,193.49,193.44,5.16937882]
[1753696526361,36.42,193.48,193.44,5.86937882]
[1753696526565,36.42,193.48,193.45,0.7]
[1753696526765,36.42,193.48,193.44,31.16937882]
[1753696526948,37.14,193.48,193.44,31.86937882]
[1753696527849,37.14,193.48,193.44,31.16937882]
[1753696528058,37.14,193.48,193.44,31.86937882]
[1753696528365,36.42,193.48,193.44,31.16937882]
[1753696528541,36.42,193.48,193.45,0.98432314]
[1753696529137,36.42,193.48,193.46,0.7]
[1753696530365,36.42,193.48,193.46,5.86898445]
[1753696531371,36.42,193.48,193.46,5.16898445]
[1753696532373,36.42,193.48,193.47,5.45308315]
[1753696533563,36.42,193.48,193.47,6.15308315]
[1753696533739,36.42,193.48,193.47,5.45308315]
[1753696537249,36.42,193.48,193.47,6.15308315]
[1753696537450,0.72,193.54,193.47,126.23635993]
[1753696537651,36.44,193.53,193.52,0.28432314]
[1753696537865,2.69591863,193.57,193.52,6.76759992]
[1753696538052,2.69591863,193.57,193.55,5.78327678]
[1753696538252,36.44,193.56,193.55,0.28432314]
[1753696538663,36.44,193.56,193.55,5.45094675]
[1753696538861,36.44,193.56,193.55,11.23422353]
[1753696539968,36.44,193.56,193.55,11.93422353]
[1753696543476,36.44,193.56,193.55,100.23422353]
[1753696544978,37.16,193.56,193.55,94.08327678]
[1753696545180,37.16,193.56,193.53,36.95036198]
[1753696545475,0.72,193.55,193.53,36.95036198]
[1753696546248,0.72,193.54,193.5,5.78327678]
[1753696546450,36.42,193.53,193.49,5.78327678]